{"text_format":"1","workbook":"xlsx","n_sheets":3,"sheets":["設定","キャンバス","色選択"],"not_rendered":{"charts":0,"images":1,"macros":1,"external_links":0,"defined_names":0,"comments":0,"pivot_tables":0},"unopened":[],"bounds":{"document_bytes":16777216,"sheet_cells":100000,"rows_first":2000,"rows_last":500,"rows_between":2000,"halvings":0,"cell_chars":16384,"cell_head_chars":4096},"cells_cut":0,"cells_raw":0,"read":"whole","date_system":"1900"}

{"sheet":"設定","index":0,"n_rows":24,"n_cols":7,"rows_kept":24,"cut":false,"hidden":false,"merged":[[4,2,4,3],[4,1,5,1],[1,1,1,4],[4,4,5,5]]}
[]
[null,"描画作成条件設定",null,null,null,null,{"$f":"TODAY()","v":"2022-05-14"}]
[]
[]
[null,"描画数","キャンバス",null,"色選択"]
[null,null,"縦(max600)","横(max1300)"]
[null,5000,600,1300]
[null,null,null,null,false,true]
[null,"キャンバスの任意場所でクリックするとその場所から描画数分描画していきます。"]
[]
[null,null,"キー押下でキャンバスクリアーとなります。"]
[]
[]
[null,null,"印刷プレビュー"]
[]
[]
[null,null,"キーで保存終了します。"]
[]
[]
[null,null,"Events on"]
[]
[]
[]
[null,null,null,"Key Set"]

{"sheet":"キャンバス","index":1,"n_rows":502,"n_cols":1202,"rows_kept":502,"cut":false,"hidden":false,"merged":[[101,0,200,0],[201,0,300,0],[301,0,400,0],[401,0,500,0],[501,0,600,0],[0,1101,0,1200],[0,1201,0,1300],[1,0,100,0],[0,501,0,600],[0,601,0,700],[0,701,0,800],[0,801,0,900],[0,901,0,1000],[0,1001,0,1100],[0,1,0,100],[0,101,0,200],[0,201,0,300],[0,301,0,400],[0,401,0,500]]}
[2,100,null,null,null,null,null,null,null,null,null,null,null,null,null,null,null,null,null,null,null,null,null,null,null,null,null,null,null,null,null,null,null,null,null,null,null,null,null,null,null,null,null,null,null,null,null,null,null,null,null,null,null,null,null,null,null,null,null,null,null,null,null,null,null,null,null,null,null,null,null,null,null,null,null,null,null,null,null,null,null,null,null,null,null,null,null,null,null,null,null,null,null,null,null,null,null,null,null,null,null,{"$f":"B1+100","v":200},null,null,null,null,null,null,null,null,null,null,null,null,null,null,null,null,null,null,null,null,null,null,null,null,null,null,null,null,null,null,null,null,null,null,null,null,null,null,null,null,null,null,null,null,null,null,null,null,null,null,null,null,null,null,null,null,null,null,null,null,null,null,null,null,null,null,null,null,null,null,null,null,null,null,null,null,null,null,null,null,null,null,null,null,null,null,null,null,null,null,null,null,null,null,null,null,null,null,null,{"$f":"CX1+100","v":300},null,null,null,null,null,null,null,null,null,null,null,null,null,null,null,null,null,null,null,null,null,null,null,null,null,null,null,null,null,null,null,null,null,null,null,null,null,null,null,null,null,null,null,null,null,null,null,null,null,null,null,null,null,null,null,null,null,null,null,null,null,null,null,null,null,null,null,null,null,null,null,null,null,null,null,null,null,null,null,null,null,null,null,null,null,null,null,null,null,null,null,null,null,null,null,null,null,null,null,{"$f":"GT1+100","v":400},null,null,null,null,null,null,null,null,null,null,null,null,null,null,null,null,null,null,null,null,null,null,null,null,null,null,null,null,null,null,null,null,null,null,null,null,null,null,null,null,null,null,null,null,null,null,null,null,null,null,null,null,null,null,null,null,null,null,null,null,null,null,null,null,null,null,null,null,null,null,null,null,null,null,null,null,null,null,null,null,null,null,null,null,null,null,null,null,null,null,null,null,null,null,null,null,null,null,null,{"$f":"KP1+100","v":500},null,null,null,null,null,null,null,null,null,null,null,null,null,null,null,null,null,null,null,null,null,null,null,null,null,null,null,null,null,null,null,null,null,null,null,null,null,null,null,null,null,null,null,null,null,null,null,null,null,null,null,null,null,null,null,null,null,null,null,null,null,null,null,null,null,null,null,null,null,null,null,null,null,null,null,null,null,null,null,null,null,null,null,null,null,null,null,null,null,null,null,null,null,null,null,null,null,null,null,{"$f":"OL1+100","v":600},null,null,null,null,null,null,null,null,null,null,null,null,null,null,null,null,null,null,null,null,null,null,null,null,null,null,null,null,null,null,null,null,null,null,null,null,null,null,null,null,null,null,null,null,null,null,null,null,null,null,null,null,null,null,null,null,null,null,null,null,null,null,null,null,null,null,null,null,null,null,null,null,null,null,null,null,null,null,null,null,null,null,null,null,null,null,null,null,null,null,null,null,null,null,null,null,null,null,null,{"$f":"SH1+100","v":700},null,null,null,null,null,null,null,null,null,null,null,null,null,null,null,null,null,null,null,null,null,null,null,null,null,null,null,null,null,null,null,null,null,null,null,null,null,null,null,null,null,null,null,null,null,null,null,null,null,null,null,null,null,null,null,null,null,null,null,null,null,null,null,null,null,null,null,null,null,null,null,null,null,null,null,null,null,null,null,null,null,null,null,null,null,null,null,null,null,null,null,null,null,null,null,null,null,null,null,{"$f":"WD1+100","v":800},null,null,null,null,null,null,null,null,null,null,null,null,null,null,null,null,null,null,null,null,null,null,null,null,null,null,null,null,null,null,null,null,null,null,null,null,null,null,null,null,null,null,null,null,null,null,null,null,null,null,null,null,null,null,null,null,null,null,null,null,null,null,null,null,null,null,null,null,null,null,null,null,null,null,null,null,null,null,null,null,null,null,null,null,null,null,null,null,null,null,null,null,null,null,null,null,null,null,null,{"$f":"ZZ1+100","v":900},null,null,null,null,null,null,null,null,null,null,null,null,null,null,null,null,null,null,null,null,null,null,null,null,null,null,null,null,null,null,null,null,null,null,null,null,null,null,null,null,null,null,null,null,null,null,null,null,null,null,null,null,null,null,null,null,null,null,null,null,null,null,null,null,null,null,null,null,null,null,null,null,null,null,null,null,null,null,null,null,null,null,null,null,null,null,null,null,null,null,null,null,null,null,null,null,null,null,null,{"$f":"ADV1+100","v":1000},null,null,null,null,null,null,null,null,null,null,null,null,null,null,null,null,null,null,null,null,null,null,null,null,null,null,null,null,null,null,null,null,null,null,null,null,null,null,null,null,null,null,null,null,null,null,null,null,null,null,null,null,null,null,null,null,null,null,null,null,null,null,null,null,null,null,null,null,null,null,null,null,null,null,null,null,null,null,null,null,null,null,null,null,null,null,null,null,null,null,null,null,null,null,null,null,null,null,null,{"$f":"AHR1+100","v":1100},null,null,null,null,null,null,null,null,null,null,null,null,null,null,null,null,null,null,null,null,null,null,null,null,null,null,null,null,null,null,null,null,null,null,null,null,null,null,null,null,null,null,null,null,null,null,null,null,null,null,null,null,null,null,null,null,null,null,null,null,null,null,null,null,null,null,null,null,null,null,null,null,null,null,null,null,null,null,null,null,null,null,null,null,null,null,null,null,null,null,null,null,null,null,null,null,null,null,null,{"$f":"ALN1+100","v":1200},null,null,null,null,null,null,null,null,null,null,null,null,null,null,null,null,null,null,null,null,null,null,null,null,null,null,null,null,null,null,null,null,null,null,null,null,null,null,null,null,null,null,null,null,null,null,null,null,null,null,null,null,null,null,null,null,null,null,null,null,null,null,null,null,null,null,null,null,null,null,null,null,null,null,null,null,null,null,null,null,null,null,null,null,null,null,null,null,null,null,null,null,null,null,null,null,null,null,null,{"$f":"APJ1+100","v":1300}]
[100]
[]
[]
[]
[]
[]
[]
[]
[]
[]
[]
[null,null,null,null,null,null,null,null,null,null,null,null,null,null,null,null,null,null,null,null,null,null,null,null,null,null,null,null,null,null,null,null,null,null,null,null,null,null,null,null,null,null,null,null,null,null,null,null,null,null,null,null,null,null,null,null,null,null,null,null,null,null,null,null,null,null,null,null,null,null,null,null,null,null,null,null,null,null,null,null,null,null,null,null,null,null,null,null,null,null,null,null,null,null,null,null,null,null,null,null,null,null,null,null,null,null,null,null,null,null,null,null,null,null,null,null,null,null,null,null,null,null,null,null,null,null,null,null,null,null,null,null,null,null,null,null,null,null,null,null,null,null,null,null,null,null,null,null,null,null,null,null,null,null,null,null,null,null,null,null,null,null,null,null,null,null,null,null,null,null,null,null,null,null,null,null,null,null,null,null,null,null,null,null,null,null,null,null,null,null,null,null,null,null,null,null,null,null,null,null,null,null,null,null,null,null,null,null,null,null,null,null,null,null,null,null,null,null,null,null,null,null,null,null,null,null,null,null,null,null,null,null,null,null,null,null,null,null,null,null,null,null,null,null,null,null,null,null,null,null,null,null,null,null,null,null,null,null,null,null,null,null,null,null,null,null,null,null,null,null,null,null,null,null,null,null,null,null,null,null,null,null,null,null,null,null,null,null,null,null,null,null,null,null,null,null,null,null,null,null,null,null,null,null,null,null,null,null,null,null,null,null,null,null,null,null,null,null,null,null,null,null,null,null,null,null,null,null,null,null,null,null,null,null,null,null,null,null,null,null,null,null,null,null,null,null,null,null,null,null,null,null,null,null,null,null,null,null,null,null,null,null,null,null,null,null,null,null,null,null,null,null,null,null,null,null,null,null,null,null,null,null,null,null,null,null,null,null,null,null,null,null,null,null,null,null,null,null,null,null,null,null,null,null,null,null,null,null,null,null,null,null,null,null,null,null,null,null,null,null,null,null,null,null,null,null,null,null,null,null,null,null,null,null,null,null,null,null,null,null,null,null,null,null,null,null,null,null,null,null,null,null,null,null,null,null,null,null,null,null,null,null,null,null,null,null,null,null,null,null,null,null,null,null,null,null,null,null,null,null,null,null,null,null,null,null,null,null,null,null,null,null,null,null,null,null,null,null,null,null,null,null,null,null,null,null,null,null,null,null,null,null,null,null,null,null,null,null,null,null,null,null,null,null,null,null,null,null,null,null,null,null,null,null,null,null,null,null,null,null,null,null,null,null,null,null,null,null,null,null,null,null,null,null,null,null,null,null,null,null,null,null,null,null,null,null,null,null,null,null,null,null,null,null,null,null,null,null,null,null,null,null,null,null,null,null,null,null,null,null,null,null,null,null,null,null,null,null,null,null,null,null,null,null,null,null,null,null,null,"."]
[]
[]
[]
[]
[]
[]
[null,null,"Events off"]
[]
[]
[]
[]
[]
[]
[]
[]
[]
[]
[]
[]
[]
[]
[]
[]
[]
[]
[]
[]
[]
[]
[]
[]
[]
[]
[]
[]
[]
[]
[]
[]
[]
[]
[]
[]
[]
[]
[]
[]
[]
[]
[]
[]
[]
[]
[]
[]
[]
[]
[]
[]
[]
[]
[]
[]
[]
[]
[]
[]
[]
[]
[]
[]
[]
[]
[]
[]
[]
[]
[]
[]
[]
[]
[]
[]
[]
[]
[]
[]
[]
[{"$f":"A2+100","v":200}]
[]
[]
[]
[]
[]
[]
[]
[]
[]
[]
[]
[]
[]
[]
[]
[]
[]
[]
[]
[]
[]
[]
[]
[]
[]
[]
[]
[]
[]
[]
[]
[]
[]
[]
[]
[]
[]
[]
[]
[]
[]
[]
[]
[]
[]
[]
[]
[]
[]
[]
[]
[]
[]
[]
[]
[]
[]
[]
[]
[]
[]
[]
[]
[]
[]
[]
[]
[]
[]
[]
[]
[]
[]
[]
[]
[]
[]
[]
[]
[]
[]
[]
[]
[]
[]
[]
[]
[]
[]
[]
[]
[]
[]
[]
[]
[]
[]
[]
[]
[{"$f":"A102+100","v":300}]
[]
[]
[]
[]
[]
[]
[]
[]
[]
[]
[]
[]
[]
[]
[]
[]
[]
[]
[]
[]
[]
[]
[]
[]
[]
[]
[]
[]
[]
[]
[]
[]
[]
[]
[]
[]
[]
[]
[]
[]
[]
[]
[]
[]
[]
[]
[]
[]
[]
[]
[]
[]
[]
[]
[]
[]
[]
[]
[]
[]
[]
[]
[]
[]
[]
[]
[]
[]
[]
[]
[]
[]
[]
[]
[]
[]
[]
[]
[]
[]
[]
[]
[]
[]
[]
[]
[]
[]
[]
[]
[]
[]
[]
[]
[]
[]
[]
[]
[]
[{"$f":"A202+100","v":400}]
[]
[]
[]
[]
[]
[]
[]
[]
[]
[]
[]
[]
[]
[]
[]
[]
[]
[]
[]
[]
[]
[]
[]
[]
[]
[]
[]
[]
[]
[]
[]
[]
[]
[]
[]
[]
[]
[]
[]
[]
[]
[]
[]
[]
[]
[]
[]
[]
[]
[]
[]
[]
[]
[]
[]
[]
[]
[]
[]
[]
[]
[]
[]
[]
[]
[]
[]
[]
[]
[]
[]
[]
[]
[]
[]
[]
[]
[]
[]
[]
[]
[]
[]
[]
[]
[]
[]
[]
[]
[]
[]
[]
[]
[]
[]
[]
[]
[]
[]
[{"$f":"A302+100","v":500}]
[]
[]
[]
[]
[]
[]
[]
[]
[]
[]
[]
[]
[]
[]
[]
[]
[]
[]
[]
[]
[]
[]
[]
[]
[]
[]
[]
[]
[]
[]
[]
[]
[]
[]
[]
[]
[]
[]
[]
[]
[]
[]
[]
[]
[]
[]
[]
[]
[]
[]
[]
[]
[]
[]
[]
[]
[]
[]
[]
[]
[]
[]
[]
[]
[]
[]
[]
[]
[]
[]
[]
[]
[]
[]
[]
[]
[]
[]
[]
[]
[]
[]
[]
[]
[]
[]
[]
[]
[]
[]
[]
[]
[]
[]
[]
[]
[]
[]
[]
[{"$f":"A402+100","v":600}]

{"sheet":"色選択","index":2,"n_rows":211,"n_cols":10,"rows_kept":211,"cut":false,"hidden":true,"merged":[[51,5,60,5],[4,6,4,7]]}
[null,null,"ThemeColor","TintAndShade","Color",null,"№","ThemeColor","TintAndShade","Color"]
[1,null,"xlThemeColorDark1","-4.99893185216834E-02",1,null,11,{"$f":"IFERROR(VLOOKUP($G$2,$A:$E,3,FALSE),\"\")","v":"xlThemeColorDark2"},{"$f":"IFERROR(VALUE(VLOOKUP($G$2,$A:$E,4,FALSE)),\"\")","v":-9.9978637043366805E-2},{"$f":"IFERROR(VLOOKUP($G$2,$A:$E,5,FALSE),\"\")","v":3}]
[{"$f":"A2+1","v":2},null,"xlThemeColorDark1","-0.149998474074526",1]
[{"$f":"A3+1","v":3},null,"xlThemeColorDark1","-0.249977111117893",1]
[4,null,"xlThemeColorDark1","-0.349986266670736",1,null,"グラデーション"]
[5,null,"xlThemeColorDark1","-0.499984740745262",1,null,1,45]
[6,null,"xlThemeColorLight1","0.499984740745262",2,null,2,90]
[7,null,"xlThemeColorLight1","0.349986266670736",2,null,3,{"$f":"H7+H6","v":135}]
[8,null,"xlThemeColorLight1","0.249977111117893",2,null,4,225]
[9,null,"xlThemeColorLight1","0.149998474074526",2,null,5,270]
[10,null,"xlThemeColorLight1","4.99893185216834E-02",2,null,5,{"$f":"IFERROR(VLOOKUP(G11,G6:H10,2,FALSE),\"\")","v":270}]
[11,null,"xlThemeColorDark2","-9.99786370433668E-02",3]
[12,null,"xlThemeColorDark2","-0.249977111117893",3]
[13,null,"xlThemeColorDark2","-0.499984740745262",3]
[14,null,"xlThemeColorDark2","-0.749992370372631",3]
[15,null,"xlThemeColorDark2","-0.899990844447157",3]
[16,null,"xlThemeColorLight2","0.799981688894314",4]
[17,null,"xlThemeColorLight2","0.599993896298105",4]
[18,null,"xlThemeColorLight2","0.399975585192419",4]
[19,null,"xlThemeColorLight2","-0.249977111117893",4]
[20,null,"xlThemeColorLight2","-0.499984740745262",4]
[21,null,"xlThemeColorAccent1","0.799981688894314",5]
[22,null,"xlThemeColorAccent1","0.599993896298105",5]
[23,null,"xlThemeColorAccent1","0.399975585192419",5]
[24,null,"xlThemeColorAccent1","-0.249977111117893",5]
[25,null,"xlThemeColorAccent1","-0.499984740745262",5]
[26,null,"xlThemeColorAccent2","0.799981688894314",6]
[27,null,"xlThemeColorAccent2","0.599993896298105",6]
[28,null,"xlThemeColorAccent2","0.399975585192419",6]
[29,null,"xlThemeColorAccent2","-0.249977111117893",6]
[30,null,"xlThemeColorAccent2","-0.499984740745262",6]
[31,null,"xlThemeColorAccent3","0.799981688894314",7]
[32,null,"xlThemeColorAccent3","0.599993896298105",7]
[33,null,"xlThemeColorAccent3","0.399975585192419",7]
[34,null,"xlThemeColorAccent3","-0.249977111117893",7]
[35,null,"xlThemeColorAccent3","-0.499984740745262",7]
[36,null,"xlThemeColorAccent4","0.799981688894314",8]
[37,null,"xlThemeColorAccent4","0.599993896298105",8]
[38,null,"xlThemeColorAccent4","0.399975585192419",8]
[39,null,"xlThemeColorAccent4","-0.249977111117893",8]
[40,null,"xlThemeColorAccent4","-0.499984740745262",8]
[41,null,"xlThemeColorAccent5","0.799981688894314",9]
[42,null,"xlThemeColorAccent5","0.599993896298105",9]
[43,null,"xlThemeColorAccent5","0.399975585192419",9]
[44,null,"xlThemeColorAccent5","-0.249977111117893",9]
[45,null,"xlThemeColorAccent5","-0.499984740745262",9]
[46,null,"xlThemeColorAccent6","0.799981688894314",10]
[47,null,"xlThemeColorAccent6","0.599993896298105",10]
[48,null,"xlThemeColorAccent6","0.399975585192419",10]
[49,null,"xlThemeColorAccent6","-0.249977111117893",10]
[50,null,"xlThemeColorAccent6","-0.499984740745262",10]
[51,null,"xlThemeColorDark1","0",1,"ThemeColor№"]
[52,null,"xlThemeColorLight1","0",2]
[53,null,"xlThemeColorDark2","0",3]
[54,null,"xlThemeColorLight2","0",4]
[55,null,"xlThemeColorAccent1","0",5]
[56,null,"xlThemeColorAccent2","0",6]
[57,null,"xlThemeColorAccent3","0",7]
[58,null,"xlThemeColorAccent4","0",8]
[59,null,"xlThemeColorAccent5","0",9]
[60,null,"xlThemeColorAccent6","0",10]
[61,null,null,"0","0"]
[62,null,null,"0","128"]
[63,null,null,"0","153"]
[64,null,null,"0","192"]
[65,null,null,"0","204"]
[66,null,null,"0","255"]
[{"$f":"A67+1","v":67},null,null,"0","13056"]
[68,null,null,"0","13107"]
[69,null,null,"0","13158"]
[70,null,null,"0","13209"]
[71,null,null,"0","13260"]
[72,null,null,"0","13311"]
[73,null,null,"0","26112"]
[74,null,null,"0","26163"]
[75,null,null,"0","26265"]
[76,null,null,"0","26316"]
[77,null,null,"0","26367"]
[78,null,null,"0","32768"]
[79,null,null,"0","32896"]
[80,null,null,"0","39168"]
[81,null,null,"0","39270"]
[82,null,null,"0","39372"]
[83,null,null,"0","39423"]
[84,null,null,"0","49407"]
[85,null,null,"0","52224"]
[86,null,null,"0","52377"]
[87,null,null,"0","52428"]
[88,null,null,"0","52479"]
[89,null,null,"0","65280"]
[90,null,null,"0","65535"]
[91,null,null,"0","526344"]
[92,null,null,"0","1118481"]
[93,null,null,"0","1842204"]
[94,null,null,"0","2162853"]
[95,null,null,"0","2697513"]
[96,null,null,"0","3342438"]
[97,null,null,"0","3342489"]
[98,null,null,"0","3355443"]
[99,null,null,"0","3368550"]
[100,null,null,"0","3368601"]
[101,null,null,"0","3381555"]
[102,null,null,"0","3381759"]
[103,null,null,"0","3394611"]
[104,null,null,"0","3407718"]
[105,null,null,"0","3407769"]
[106,null,null,"0","3407820"]
[107,null,null,"0","5066061"]
[108,null,null,"0","5263615"]
[109,null,null,"0","5287936"]
[110,null,null,"0","5296274"]
[111,null,null,"0","6250335"]
[112,null,null,"0","6299648"]
[113,null,null,"0","6684672"]
[114,null,null,"0","6684774"]
[115,null,null,"0","6684876"]
[116,null,null,"0","6684927"]
[117,null,null,"0","6697728"]
[118,null,null,"0","6697881"]
[119,null,null,"0","6710784"]
[120,null,null,"0","6723891"]
[121,null,null,"0","6724095"]
[122,null,null,"0","6736896"]
[123,null,null,"0","6737151"]
[124,null,null,"0","6750054"]
[125,null,null,"0","6750105"]
[126,null,null,"0","6750156"]
[127,null,null,"0","6750207"]
[128,null,null,"0","7829367"]
[129,null,null,"0","8388736"]
[130,null,null,"0","8420607"]
[{"$f":"A131+1","v":131},null,null,"0","8421376"]
[132,null,null,"0","8421504"]
[133,null,null,"0","9634006"]
[134,null,null,"0","9868950"]
[135,null,null,"0","10027008"]
[136,null,null,"0","10027161"]
[137,null,null,"0","10027212"]
[138,null,null,"0","10040064"]
[139,null,null,"0","10040115"]
[140,null,null,"0","10040268"]
[141,null,null,"0","10040319"]
[142,null,null,"0","10053120"]
[143,null,null,"0","10053171"]
[144,null,null,"0","10053222"]
[145,null,null,"0","10053375"]
[146,null,null,"0","10066176"]
[147,null,null,"0","10066431"]
[148,null,null,"0","10079232"]
[149,null,null,"0","10079487"]
[150,null,null,"0","10092288"]
[151,null,null,"0","10092390"]
[152,null,null,"0","10092441"]
[153,null,null,"0","10092492"]
[154,null,null,"0","10092543"]
[155,null,null,"0","10498160"]
[156,null,null,"0","11711154"]
[157,null,null,"0","12611584"]
[158,null,null,"0","12632256"]
[159,null,null,"0","13369344"]
[160,null,null,"0","13369446"]
[161,null,null,"0","13369497"]
[162,null,null,"0","13369548"]
[163,null,null,"0","13382400"]
[164,null,null,"0","13382451"]
[165,null,null,"0","13382655"]
[166,null,null,"0","13395456"]
[167,null,null,"0","13395507"]
[168,null,null,"0","13395711"]
[169,null,null,"0","13408512"]
[170,null,null,"0","13408767"]
[171,null,null,"0","13421619"]
[172,null,null,"0","13421823"]
[173,null,null,"0","13434624"]
[174,null,null,"0","13434726"]
[175,null,null,"0","13434777"]
[176,null,null,"0","13434828"]
[177,null,null,"0","13434879"]
[178,null,null,"0","14540253"]
[179,null,null,"0","15395562"]
[180,null,null,"0","15773696"]
[181,null,null,"0","16711680"]
[182,null,null,"0","16711782"]
[183,null,null,"0","16711833"]
[184,null,null,"0","16711884"]
[185,null,null,"0","16711935"]
[186,null,null,"0","16724787"]
[187,null,null,"0","16724889"]
[188,null,null,"0","16737792"]
[189,null,null,"0","16737843"]
[190,null,null,"0","16737894"]
[191,null,null,"0","16737945"]
[192,null,null,"0","16737996"]
[193,null,null,"0","16738047"]
[194,null,null,"0","16750848"]
[{"$f":"A195+1","v":195},null,null,"0","16750899"]
[196,null,null,"0","16750950"]
[197,null,null,"0","16751001"]
[198,null,null,"0","16751052"]
[199,null,null,"0","16751103"]
[200,null,null,"0","16763904"]
[201,null,null,"0","16763955"]
[202,null,null,"0","16764006"]
[203,null,null,"0","16764057"]
[204,null,null,"0","16764108"]
[205,null,null,"0","16764159"]
[206,null,null,"0","16772300"]
[207,null,null,"0","16776960"]
[208,null,null,"0","16777062"]
[209,null,null,"0","16777164"]
[210,null,null,"0","16777215"]